[Event "2. Itzehoer Schach Open"]
[Site "Itzehoe, Germany"]
[Date "2023.04.30"]
[Round "4.50"]
[White "Kaehler, Marvin"]
[Black "Knudsen, Frank"]
[Result "1-0"]
[TimeControl "90 min für 40 Züge, Rest 30 min + 30 Sek pro Zug"]
[WhiteElo "1015"]
[BlackElo "940"]

1. e3 {[%clk 01:30:58]} {[%emt 00:00:02]} e5 {[%clk 01:30:38]} {[%emt
00:00:22]} 2. g3 {[%clk 01:31:17]} {[%emt 00:00:11]} Nc6 {[%clk 01:30:09]}
{[%emt 00:01:00]} 3. b3 {[%clk 01:31:36]} {[%emt 00:00:10]} Bc5 {[%clk
01:28:59]} {[%emt 00:01:40]} 4. Bg2 {[%clk 01:31:51]} {[%emt 00:00:16]} Nf6
{[%clk 01:28:45]} {[%emt 00:00:43]} 5. Bb2 {[%clk 01:31:54]} {[%emt 00:00:26]}
O-O {[%clk 01:28:02]} {[%emt 00:01:14]} 6. d3 {[%clk 01:31:55]} {[%emt
00:00:29]} Bb4+ {[%clk 01:26:13]} {[%emt 00:02:18]} 7. c3 {[%clk 01:32:18]}
{[%emt 00:00:08]} Bc5 {[%clk 01:24:55]} {[%emt 00:01:48]} 8. Ne2 {[%clk
01:32:27]} {[%emt 00:00:21]} Ng4 {[%clk 01:23:35]} {[%emt 00:01:49]} 9. O-O
{[%clk 01:32:31]} {[%emt 00:00:26]} Qf6 {[%clk 01:22:23]} {[%emt 00:01:42]} 10.
d4 {[%clk 01:32:05]} {[%emt 00:00:57]} exd4 {[%clk 01:21:54]} {[%emt 00:00:59]}
11. cxd4 {[%clk 01:32:13]} {[%emt 00:00:22]} Bb4 {[%clk 01:20:45]} {[%emt
00:01:39]} 12. Qd3 {[%clk 01:31:54]} {[%emt 00:00:49]} Qh6 {[%clk 01:20:54]}
{[%emt 00:00:21]} 13. h3 {[%clk 01:32:13]} {[%emt 00:00:11]} Nf6 {[%clk
01:19:40]} {[%emt 00:01:44]} 14. a3 {[%clk 01:31:56]} {[%emt 00:00:48]} Be7
{[%clk 01:18:34]} {[%emt 00:01:35]} 15. Nd2 {[%clk 01:31:50]} {[%emt 00:00:36]}
d5 {[%clk 01:17:52]} {[%emt 00:01:12]} 16. Nf4 {[%clk 01:30:35]} {[%emt
00:01:45]} Be6 {[%clk 01:14:53]} {[%emt 00:03:29]} 17. Nf3 {[%clk 01:30:25]}
{[%emt 00:00:39]} Bd6 {[%clk 01:13:14]} {[%emt 00:02:09]} 18. Bc1 {[%clk
01:28:02]} {[%emt 00:02:53]} Bxf4 {[%clk 01:11:38]} {[%emt 00:02:04]} 19. exf4
{[%clk 01:28:08]} {[%emt 00:00:25]} Bxh3 {[%emt 00:02:12]} 20. f5 {[%clk
01:25:22]} {[%emt 00:03:04]} Bxg2 {[%clk 01:09:36]} {[%emt 00:01:03]} 21. Bxh6
{[%clk 01:25:19]} {[%emt 00:00:33]} Bxf1 {[%clk 01:09:34]} {[%emt 00:00:32]} 22.
Kxf1 {[%clk 01:24:31]} {[%emt 00:01:18]} gxh6 {[%clk 01:09:42]} {[%emt
00:00:21]} 23. Kg2 {[%clk 01:24:17]} {[%emt 00:00:45]} Ng4 {[%clk 01:09:04]}
{[%emt 00:01:07]} 24. Rh1 {[%clk 01:24:05]} {[%emt 00:00:42]} Rae8 {[%clk
01:08:13]} {[%emt 00:01:21]} 25. f6 {[%clk 01:24:23]} {[%emt 00:00:12]} Re4
{[%clk 01:07:14]} {[%emt 00:01:29]} 26. Qb5 {[%clk 01:21:22]} {[%emt 00:03:31]}
Nxd4 {[%clk 01:04:10]} {[%emt 00:03:33]} 27. Qxd5 {[%clk 01:20:58]} {[%emt
00:00:54]} Nxf6 {[%clk 01:04:01]} {[%emt 00:00:39]} 28. Qxb7 {[%clk 01:20:25]}
{[%emt 00:01:03]} Nxf3 {[%clk 01:02:32]} {[%emt 00:01:58]} 29. Kxf3 {[%clk
01:20:44]} {[%emt 00:00:12]} Rd8 {[%clk 01:01:51]} {[%emt 00:01:12]} 30. Rxh6
{[%clk 01:20:53]} {[%emt 00:00:21]} Rd3+ {[%clk 00:59:46]} {[%emt 00:02:35]} 31.
Kg2 {[%clk 01:21:12]} {[%emt 00:00:11]} Kg7 {[%clk 00:59:41]} {[%emt 00:00:35]}
32. Rh4 {[%clk 01:21:16]} {[%emt 00:00:25]} Re2 {[%clk 00:53:52]} {[%emt
00:06:19]} 33. Qxa7 {[%clk 01:21:03]} {[%emt 00:00:44]} Ne4 {[%clk 00:52:21]}
{[%emt 00:02:01]} 34. Rf4 {[%clk 01:20:42]} {[%emt 00:00:50]} Rxg3+ {[%clk
00:51:58]} {[%emt 00:00:52]} 35. Kf1 {[%clk 01:20:08]} {[%emt 00:01:05]} Rxf2+
{[%clk 00:47:37]} {[%emt 00:04:51]} 36. Rxf2 {[%clk 01:20:20]} {[%emt
00:00:17]} Nxf2 {[%emt 00:00:18]} 37. Qxf2 {[%emt 00:00:12]} Rxb3 {[%emt
00:00:12]} 38. a4 {[%emt 00:00:12]} Rb1+ {[%clk 00:46:42]} {[%emt 00:00:32]} 39.
Qe1 {[%clk 01:20:35]} {[%emt 00:00:17]} Rxe1+ {[%clk 00:46:05]} {[%emt
00:01:06]} 40. Kxe1 {[%clk 01:20:57]} {[%emt 00:00:08]} c5 {[%clk 00:45:10]}
{[%emt 00:01:25]} 41. a5 {[%clk 01:21:18]} {[%emt 00:00:09]} c4 {[%clk
00:45:35]} {[%emt 00:00:05]} 42. a6 {[%clk 01:21:44]} {[%emt 00:00:03]} c3
{[%clk 00:46:01]} {[%emt 00:00:05]} 43. Kd1 {[%clk 01:22:05]} {[%emt 00:00:09]}
f5 {[%clk 00:46:15]} {[%emt 00:00:17]} 44. a7 {[%clk 01:22:30]} {[%emt
00:00:05]} f4 {[%clk 00:46:33]} {[%emt 00:00:11]} 45. a8=Q {[%clk 01:22:54]}
{[%emt 00:00:06]} Kg6 {[%clk 00:46:38]} {[%emt 00:00:25]} 46. Qa5 {[%clk
01:23:06]} {[%emt 00:00:16]} c2+ {[%clk 00:46:54]} {[%emt 00:00:15]} 47. Kxc2
{[%clk 01:23:27]} {[%emt 00:00:09]} h5 {[%clk 00:47:06]} {[%emt 00:00:19]} 48.
Kd2 {[%clk 01:23:50]} {[%emt 00:00:06]} h4 {[%clk 00:47:29]} {[%emt 00:00:07]}
49. Ke2 {[%clk 01:24:13]} {[%emt 00:00:08]} h3 {[%clk 00:47:48]} {[%emt
00:00:11]} 50. Kf3 {[%clk 01:24:27]} {[%emt 00:00:16]} h2 {[%clk 00:48:05]}
{[%emt 00:00:12]} 51. Qe1 {[%clk 01:24:28]} {[%emt 00:00:29]} Kg5 {[%clk
00:48:16]} {[%emt 00:00:20]} 52. Qh1 {[%clk 01:24:44]} {[%emt 00:00:14]} Kh4
{[%clk 00:48:19]} {[%emt 00:00:26]} 53. Kxf4 {[%clk 01:25:03]} {[%emt
00:00:11]} Kh3 {[%clk 00:48:30]} {[%emt 00:00:19]} 54. Kf3 {[%clk 01:25:15]}
{[%emt 00:00:19]} Kh4 {[%clk 00:48:38]} {[%emt 00:00:22]} 55. Qxh2+ {[%clk
01:25:34]} {[%emt 00:00:10]} Kg5 {[%clk 00:49:02]} {[%emt 00:00:06]} 56. Qf4+
{[%clk 01:25:58]} {[%emt 00:00:07]} Kh5 {[%clk 00:49:18]} {[%emt 00:00:14]} 57.
Qg3 {[%clk 01:26:19]} {[%emt 00:00:09]} Kh6 {[%clk 00:49:38]} {[%emt 00:00:09]}
58. Kf4 {[%clk 01:26:24]} {[%emt 00:00:25]} Kh7 {[%clk 00:49:43]} {[%emt
00:00:25]} 59. Kf5 {[%clk 01:26:48]} {[%emt 00:00:07]} Kh8 {[%clk 00:49:57]}
{[%emt 00:00:16]} 60. Kf6 {[%clk 01:27:13]} {[%emt 00:00:05]} Kh7 {[%clk
00:50:04]} {[%emt 00:00:23]} 61. Qg7+ {[%clk 01:27:36]} {[%emt 00:00:06]} 1-0

[Event "2. Itzehoer Schach Open"]
[Site "Itzehoe, Germany"]
[Date "2023.04.30"]
[Round "4.40"]
[White "Schiller, Thomas"]
[Black "Junge, Julia Marie"]
[Result "0-1"]
[TimeControl "90 min für 40 Züge, Rest 30 min + 30 Sek pro Zug"]
[WhiteElo "1678"]
[BlackElo "1367"]

1. f4 {[%clk 01:30:56]} {[%emt 00:00:03]} Nc6 {[%clk 01:30:07]} {[%emt
00:00:55]} 2. Nf3 {[%clk 01:31:18]} {[%emt 00:00:08]} Nf6 {[%clk 01:28:39]}
{[%emt 00:01:58]} 3. e3 {[%clk 01:31:38]} {[%emt 00:00:10]} g6 {[%clk
01:26:38]} {[%emt 00:02:30]} 4. b3 {[%clk 01:31:42]} {[%emt 00:00:26]} Bg7
{[%clk 01:22:29]} {[%emt 00:04:39]} 5. Bb2 {[%emt 00:01:06]} O-O {[%clk
01:22:01]} {[%emt 00:00:01]} 6. Bb5 {[%clk 01:32:18]} {[%emt 00:00:16]} a6
{[%clk 01:20:39]} {[%emt 00:01:52]} 7. Bxc6 {[%clk 01:32:42]} {[%emt 00:00:05]}
dxc6 {[%clk 01:20:57]} {[%emt 00:00:13]} 8. O-O {[%clk 01:32:51]} {[%emt
00:00:21]} Bg4 {[%clk 01:16:58]} {[%emt 00:04:29]} 9. Qe1 {[%clk 01:30:49]}
{[%emt 00:02:32]} e6 {[%clk 01:15:56]} {[%emt 00:01:32]} 10. Ne5 {[%clk
01:30:06]} {[%emt 00:01:12]} Bf5 {[%clk 01:11:14]} {[%emt 00:05:12]} 11. d3
{[%clk 01:25:22]} {[%emt 00:05:14]} Qe7 {[%clk 01:04:41]} {[%emt 00:06:54]} 12.
Nd2 {[%clk 01:20:41]} {[%emt 00:05:21]} Qc5 {[%clk 01:01:59]} {[%emt 00:03:07]}
13. Kh1 {[%clk 01:16:24]} {[%emt 00:04:52]} Qxc2 {[%clk 01:00:29]} {[%emt
00:02:00]} 14. Ndc4 {[%clk 01:16:38]} {[%emt 00:00:16]} Bxd3 {[%clk 01:00:18]}
{[%emt 00:00:40]} 15. Rf2 {[%clk 01:11:03]} {[%emt 00:06:06]} Be2 {[%clk
00:59:47]} {[%emt 00:01:00]} 16. Rxe2 {[%clk 01:09:49]} {[%emt 00:01:44]} Qe4
{[%clk 00:58:20]} {[%emt 00:01:57]} 17. Rd1 {[%clk 01:08:43]} {[%emt 00:01:36]}
Rad8 {[%clk 00:55:36]} {[%emt 00:03:14]} 18. Red2 {[%clk 01:07:49]} {[%emt
00:01:25]} Rd5 {[%clk 00:54:11]} {[%emt 00:01:50]} 19. Rd4 {[%clk 00:53:49]}
{[%emt 00:14:34]} Rxd4 {[%clk 00:53:25]} {[%emt 00:01:16]} 20. Rxd4 {[%clk
00:53:55]} {[%emt 00:00:24]} Qf5 {[%clk 00:51:14]} {[%emt 00:02:41]} 21. Qd1
{[%clk 00:51:07]} {[%emt 00:03:17]} Ne4 {[%clk 00:50:11]} {[%emt 00:01:34]} 22.
Qf3 {[%clk 00:47:38]} {[%emt 00:03:58]} Nc5 {[%clk 00:43:58]} {[%emt 00:06:45]}
23. Ba3 {[%clk 00:29:36]} {[%emt 00:18:32]} f6 {[%clk 00:34:08]} {[%emt
00:10:20]} 24. e4 {[%clk 00:23:33]} {[%emt 00:06:33]} Qh5 {[%clk 00:32:57]}
{[%emt 00:01:41]} 25. Qxh5 {[%clk 00:18:19]} {[%emt 00:05:44]} gxh5 {[%clk
00:33:18]} {[%emt 00:00:09]} 26. Bxc5 {[%clk 00:18:00]} {[%emt 00:00:49]} fxe5
{[%clk 00:33:35]} {[%emt 00:00:13]} 27. Bxf8 {[%clk 00:18:21]} {[%emt
00:00:09]} exd4 {[%clk 00:33:51]} {[%emt 00:00:13]} 28. Bxg7 {[%clk 00:18:29]}
{[%emt 00:00:23]} Kxg7 {[%clk 00:34:14]} {[%emt 00:00:07]} 29. Kg1 {[%clk
00:18:22]} {[%emt 00:00:37]} b5 {[%clk 00:33:54]} {[%emt 00:00:50]} 30. Ne5
{[%clk 00:17:55]} {[%emt 00:00:57]} c5 {[%clk 00:34:07]} {[%emt 00:00:16]} 31.
Kf2 {[%clk 00:18:19]} {[%emt 00:00:06]} h4 {[%clk 00:33:56]} {[%emt 00:00:41]}
32. Ke2 {[%clk 00:17:35]} {[%emt 00:01:15]} h5 {[%clk 00:33:41]} {[%emt
00:00:44]} 33. Kd3 {[%clk 00:17:46]} {[%emt 00:00:19]} Kf8 {[%clk 00:33:42]}
{[%emt 00:00:29]} 34. Nd7+ {[%clk 00:17:48]} {[%emt 00:00:28]} 0-1

[Event "2. Itzehoer Schach Open"]
[Site "Itzehoe, Germany"]
[Date "2023.04.30"]
[Round "4.42"]
[White "Beth, Felix"]
[Black "Wolff, Ole"]
[Result "0-1"]
[TimeControl "90 min für 40 Züge, Rest 30 min + 30 Sek pro Zug"]
[WhiteElo "1498"]
[BlackElo "1097"]

1. d4 {[%clk 01:30:57]} {[%emt 00:00:03]} Nf6 {[%clk 01:30:53]} {[%emt
00:00:07]} 2. Bf4 {[%clk 01:31:21]} {[%emt 00:00:06]} c6 {[%clk 01:31:20]}
{[%emt 00:00:03]} 3. e3 {[%clk 01:31:46]} {[%emt 00:00:06]} Qb6 {[%clk
01:31:37]} {[%emt 00:00:12]} 4. Qc1 {[%clk 01:31:51]} {[%emt 00:00:25]} d5
{[%clk 01:31:17]} {[%emt 00:00:49]} 5. c3 {[%clk 01:32:12]} {[%emt 00:00:10]}
Bf5 {[%clk 01:31:06]} {[%emt 00:00:40]} 6. Nf3 {[%clk 01:32:34]} {[%emt
00:00:09]} Nbd7 {[%clk 01:29:24]} {[%emt 00:02:11]} 7. Nbd2 {[%clk 01:32:52]}
{[%emt 00:00:12]} e6 {[%clk 01:28:19]} {[%emt 00:01:35]} 8. Nh4 {[%clk
01:33:05]} {[%emt 00:00:17]} Be4 {[%clk 01:26:13]} {[%emt 00:02:36]} 9. f3
{[%clk 01:33:15]} {[%emt 00:00:20]} Bg6 {[%clk 01:26:22]} {[%emt 00:00:20]} 10.
Nxg6 {[%clk 01:33:41]} {[%emt 00:00:05]} hxg6 {[%clk 01:26:13]} {[%emt
00:00:38]} 11. Nb3 {[%clk 01:33:59]} {[%emt 00:00:13]} Nh5 {[%clk 01:23:24]}
{[%emt 00:03:18]} 12. e4 {[%clk 01:33:14]} {[%emt 00:01:16]} dxe4 {[%clk
01:20:46]} {[%emt 00:03:07]} 13. fxe4 {[%clk 01:32:03]} {[%emt 00:01:42]} c5
{[%clk 01:18:48]} {[%emt 00:02:27]} 14. Be3 {[%clk 01:31:26]} {[%emt 00:01:07]}
Rc8 {[%clk 01:18:09]} {[%emt 00:01:09]} 15. e5 {[%clk 01:30:57]} {[%emt
00:01:00]} cxd4 {[%clk 01:16:19]} {[%emt 00:02:20]} 16. Nxd4 {[%clk 01:30:57]}
{[%emt 00:00:30]} Bc5 {[%clk 01:15:36]} {[%emt 00:01:13]} 17. g4 {[%clk
01:30:42]} {[%emt 00:00:45]} Ng3 {[%clk 01:13:49]} {[%emt 00:02:17]} 18. Qd2
{[%clk 01:30:11]} {[%emt 00:01:01]} Nxe5 {[%clk 01:11:56]} {[%emt 00:02:23]} 19.
Bg2 {[%clk 01:30:21]} {[%emt 00:00:19]} Nxh1 {[%clk 01:12:01]} {[%emt
00:00:26]} 20. Bxh1 {[%clk 01:30:40]} {[%emt 00:00:11]} Nxg4 {[%clk 01:12:06]}
{[%emt 00:00:25]} 21. Bf4 {[%clk 01:29:47]} {[%emt 00:01:22]} O-O {[%clk
01:10:29]} {[%emt 00:02:07]} 22. Bf3 {[%clk 01:29:01]} {[%emt 00:01:17]} Nf6
{[%clk 01:09:47]} {[%emt 00:01:12]} 23. Nb3 {[%clk 01:28:22]} {[%emt 00:01:10]}
Rcd8 {[%clk 01:09:28]} {[%emt 00:00:49]} 24. Qg2 {[%clk 01:28:15]} {[%emt
00:00:36]} Be3 {[%clk 01:08:36]} {[%emt 00:01:22]} 25. Be5 {[%clk 01:27:20]}
{[%emt 00:01:26]} Rd7 {[%clk 01:07:21]} {[%emt 00:01:45]} 26. Bd4 {[%clk
01:26:44]} {[%emt 00:01:06]} Bxd4 {[%clk 01:07:01]} {[%emt 00:00:51]} 27. Nxd4
{[%clk 01:27:09]} {[%emt 00:00:04]} Rfd8 {[%clk 01:06:48]} {[%emt 00:00:43]} 28.
O-O-O {[%clk 01:26:09]} {[%emt 00:01:30]} e5 {[%clk 01:06:50]} {[%emt
00:00:28]} 29. Nb3 {[%clk 01:26:23]} {[%emt 00:00:16]} Rxd1+ {[%clk 01:07:11]}
30. Bxd1 {[%clk 01:26:48]} {[%emt 00:00:13]} Qe3+ {[%clk 01:07:26]} {[%emt
00:00:13]} 31. Kc2 {[%clk 01:27:15]} {[%emt 00:00:06]} Qe4+ {[%clk 01:07:31]}
{[%emt 00:00:25]} 32. Kc1 {[%clk 01:27:40]} {[%emt 00:00:05]} 0-1

[Event "2. Itzehoer Schach Open"]
[Site "Itzehoe, Germany"]
[Date "2023.04.30"]
[Round "4.45"]
[White "Greiner, Jan Oluf"]
[Black "Ackermann, Hans-Christian"]
[Result "0-1"]
[TimeControl "90 min für 40 Züge, Rest 30 min + 30 Sek pro Zug"]
[WhiteElo "960"]
[BlackElo "1722"]

1. d4 {[%clk 01:30:55]} {[%emt 00:00:04]} c5 {[%clk 01:30:40]} {[%emt
00:00:20]} 2. e4 {[%clk 01:31:16]} {[%emt 00:00:10]} cxd4 {[%clk 01:30:58]}
{[%emt 00:00:11]} 3. Qxd4 {[%clk 01:31:33]} {[%emt 00:00:13]} Nc6 {[%clk
01:31:20]} {[%emt 00:00:08]} 4. Qd1 {[%clk 01:31:54]} {[%emt 00:00:10]} e5
{[%clk 01:31:35]} {[%emt 00:00:14]} 5. Nc3 {[%clk 01:32:07]} {[%emt 00:00:17]}
Nf6 {[%clk 01:30:40]} {[%emt 00:01:25]} 6. Bg5 {[%clk 01:32:18]} {[%emt
00:00:20]} Be7 {[%clk 01:30:55]} {[%emt 00:00:14]} 7. Nf3 {[%clk 01:31:28]}
{[%emt 00:01:20]} O-O {[%clk 01:31:00]} {[%emt 00:00:25]} 8. a3 {[%clk
01:31:29]} {[%emt 00:00:30]} h6 {[%clk 01:29:46]} {[%emt 00:01:43]} 9. Bh4
{[%clk 01:31:55]} {[%emt 00:00:05]} d6 {[%clk 01:28:43]} {[%emt 00:01:33]} 10.
Bc4 {[%clk 01:32:02]} {[%emt 00:00:23]} Nh7 {[%clk 01:26:43]} {[%emt 00:02:29]}
11. Bxe7 {[%clk 01:31:22]} {[%emt 00:01:10]} Nxe7 {[%emt 00:00:18]} 12. O-O
{[%emt 00:00:18]} a6 {[%clk 01:25:25]} {[%emt 00:01:12]} 13. Nd5 {[%clk
01:30:54]} {[%emt 00:00:59]} Nc6 {[%clk 01:22:46]} {[%emt 00:03:08]} 14. b4
{[%clk 01:28:46]} {[%emt 00:02:38]} b5 {[%clk 01:23:01]} {[%emt 00:00:15]} 15.
Bb3 {[%clk 01:28:48]} {[%emt 00:00:28]} Bg4 {[%clk 01:21:32]} {[%emt 00:01:59]}
16. Ne3 {[%clk 01:27:03]} {[%emt 00:02:16]} Bh5 {[%clk 01:20:04]} {[%emt
00:01:58]} 17. c3 {[%clk 01:26:48]} {[%emt 00:00:43]} Ng5 {[%clk 01:19:26]}
{[%emt 00:01:10]} 18. Bd5 {[%clk 01:25:13]} {[%emt 00:02:05]} Nxf3+ {[%clk
01:18:46]} {[%emt 00:01:09]} 19. gxf3 {[%clk 01:25:27]} {[%emt 00:00:17]} Rc8
{[%emt 00:05:20]} 20. Kh1 {[%clk 01:23:35]} {[%emt 00:01:35]} Qf6 {[%clk
01:10:12]} {[%emt 00:05:01]} 21. Ng4 {[%clk 01:23:46]} {[%emt 00:00:19]} Qf4
{[%clk 01:07:32]} {[%emt 00:03:09]} 22. Rg1 {[%clk 01:22:30]} {[%emt 00:01:47]}
Ne7 {[%clk 01:07:19]} {[%emt 00:00:43]} 23. Rc1 {[%clk 01:20:44]} {[%emt
00:02:16]} Nxd5 {[%clk 01:05:40]} {[%emt 00:02:09]} 24. exd5 {[%clk 01:20:44]}
{[%emt 00:00:29]} f5 {[%clk 01:01:14]} {[%emt 00:04:56]} 25. Ne3 {[%clk
01:16:55]} {[%emt 00:04:18]} Bxf3+ {[%emt 00:00:46]} 26. Ng2 {[%emt 00:00:09]}
Qg4 {[%clk 00:59:18]} {[%emt 00:01:31]} 27. Qe1 {[%clk 01:14:51]} {[%emt
00:02:18]} Rc4 {[%clk 00:57:55]} {[%emt 00:02:10]} 28. Qe3 {[%clk 01:13:56]}
{[%emt 00:01:23]} Qh3 {[%clk 00:57:55]} {[%emt 00:00:32]} 29. Rcd1 {[%clk
01:12:10]} {[%emt 00:02:17]} Rh4 {[%clk 00:58:06]} {[%emt 00:00:18]} 30. Qxf3
{[%clk 01:12:11]} {[%emt 00:00:29]} Qxh2# {[%clk 00:58:21]} {[%emt 00:00:14]}
0-1

[Event "2. Itzehoer Schach Open"]
[Site "Itzehoe, Germany"]
[Date "2023.04.30"]
[Round "4.44"]
[White "Eitel, Luc"]
[Black "Steinbach, Aaron"]
[Result "1-0"]
[TimeControl "90 min für 40 Züge, Rest 30 min + 30 Sek pro Zug"]
[WhiteElo "1383"]
[BlackElo "787"]

1. e4 {[%clk 01:30:57]} {[%emt 00:00:03]} d6 {[%clk 01:30:54]} {[%emt
00:00:07]} 2. d4 {[%clk 01:31:22]} {[%emt 00:00:05]} Nf6 {[%emt 00:00:07]} 3.
f3 {[%clk 01:30:29]} {[%emt 00:01:20]} g6 {[%clk 01:31:15]} {[%emt 00:00:35]} 4.
c4 {[%clk 01:30:29]} {[%emt 00:00:30]} Bg7 {[%clk 01:30:29]} {[%emt 00:01:16]}
5. Nc3 {[%clk 01:30:40]} {[%emt 00:00:19]} c6 {[%clk 01:30:26]} {[%emt
00:00:33]} 6. Nge2 {[%clk 01:28:48]} {[%emt 00:02:22]} O-O {[%clk 01:29:57]}
{[%emt 00:00:58]} 7. Bg5 {[%clk 01:28:48]} {[%emt 00:00:29]} b6 {[%clk
01:28:29]} {[%emt 00:02:00]} 8. Qd2 {[%clk 01:25:20]} {[%emt 00:03:57]} Ba6
{[%clk 01:26:36]} {[%emt 00:02:24]} 9. Ng3 {[%clk 01:24:19]} {[%emt 00:01:31]}
Nbd7 {[%clk 01:25:27]} {[%emt 00:01:39]} 10. Be2 {[%clk 01:22:24]} {[%emt
00:02:24]} Qc7 {[%clk 01:24:36]} {[%emt 00:01:21]} 11. O-O {[%clk 01:21:05]}
{[%emt 00:01:49]} e5 {[%clk 01:23:09]} {[%emt 00:01:57]} 12. d5 {[%clk
01:18:12]} {[%emt 00:03:24]} cxd5 {[%clk 01:23:29]} {[%emt 00:00:10]} 13. Nxd5
{[%clk 01:15:00]} {[%emt 00:03:41]} Nxd5 {[%clk 01:22:32]} {[%emt 00:01:28]} 14.
cxd5 {[%clk 01:15:15]} {[%emt 00:00:15]} Bxe2 {[%clk 01:22:50]} {[%emt
00:00:12]} 15. Nxe2 {[%clk 01:14:18]} {[%emt 00:01:27]} f6 {[%clk 01:21:14]}
{[%emt 00:02:05]} 16. Rac1 {[%clk 01:12:04]} {[%emt 00:02:45]} Nc5 {[%clk
01:19:01]} {[%emt 00:02:43]} 17. Be3 {[%clk 01:11:51]} {[%emt 00:00:42]} Qe7
{[%clk 01:16:41]} {[%emt 00:02:50]} 18. b4 {[%clk 01:09:30]} {[%emt 00:02:52]}
Nb7 {[%clk 01:12:59]} {[%emt 00:04:12]} 19. Rc4 {[%clk 01:04:44]} {[%emt
00:05:08]} Rac8 {[%clk 01:11:08]} {[%emt 00:02:29]} 20. Rfc1 {[%clk 01:04:15]}
{[%emt 00:00:58]} Rxc4 {[%clk 01:10:05]} {[%emt 00:01:33]} 21. Rxc4 {[%clk
01:04:40]} {[%emt 00:00:06]} b5 {[%clk 01:05:35]} {[%emt 00:05:00]} 22. Rc6
{[%clk 01:04:29]} {[%emt 00:00:38]} Rf7 {[%clk 00:59:16]} {[%emt 00:06:52]} 23.
Qc3 {[%clk 01:01:36]} {[%emt 00:03:22]} f5 {[%clk 00:58:01]} {[%emt 00:01:46]}
24. Ra6 {[%clk 00:57:00]} {[%emt 00:05:05]} fxe4 {[%clk 00:56:41]} {[%emt
00:01:51]} 25. fxe4 {[%clk 00:57:16]} {[%emt 00:00:14]} Qf6 {[%clk 00:56:44]}
{[%emt 00:00:27]} 26. Ng3 {[%clk 00:55:36]} {[%emt 00:02:02]} h5 {[%clk
00:56:57]} {[%emt 00:00:25]} 27. Qc1 {[%clk 00:53:57]} {[%emt 00:02:07]} h4
{[%clk 00:55:03]} {[%emt 00:02:27]} 28. Nh1 {[%clk 00:53:19]} {[%emt 00:01:08]}
Bf8 {[%clk 00:54:06]} {[%emt 00:01:26]} 29. Bg5 {[%clk 00:52:25]} {[%emt
00:01:23]} Qh8 {[%clk 00:52:40]} {[%emt 00:01:57]} 30. Rxa7 {[%clk 00:52:05]}
{[%emt 00:00:50]} Qh5 {[%clk 00:52:02]} {[%emt 00:01:08]} 31. Ra3 {[%clk
00:50:46]} {[%emt 00:01:49]} Be7 {[%clk 00:50:31]} {[%emt 00:02:01]} 32. Bxe7
{[%clk 00:49:41]} {[%emt 00:01:36]} Rxe7 {[%clk 00:50:45]} {[%emt 00:00:16]} 33.
Rf3 {[%clk 00:49:03]} {[%emt 00:00:51]} Rg7 {[%clk 00:44:06]} {[%emt 00:07:25]}
34. Nf2 {[%clk 00:48:07]} {[%emt 00:01:27]} g5 {[%clk 00:43:39]} {[%emt
00:00:57]} 35. Qc8+ {[%clk 00:47:08]} {[%emt 00:01:27]} Kh7 {[%clk 00:43:23]}
{[%emt 00:00:47]} 36. Ng4 {[%clk 00:46:38]} {[%emt 00:01:01]} Rf7 {[%clk
00:40:26]} {[%emt 00:03:27]} 37. Nf6+ {[%clk 00:45:27]} {[%emt 00:01:39]} Rxf6
{[%clk 00:40:30]} {[%emt 00:00:27]} 38. Rxf6 {[%clk 00:44:52]} {[%emt
00:01:06]} Qd1+ {[%clk 00:40:24]} {[%emt 00:00:35]} 39. Rf1 {[%clk 00:45:10]}
{[%emt 00:00:11]} Qd4+ {[%clk 00:40:46]} {[%emt 00:00:09]} 40. Kh1 {[%clk
00:45:32]} {[%emt 00:00:08]} Qxe4 {[%clk 00:40:44]} {[%emt 00:00:32]} 41. Qxb7+
{[%clk 00:45:41]} {[%emt 00:00:22]} Kh6 {[%clk 00:41:03]} {[%emt 00:00:11]} 42.
Qf7 {[%clk 00:44:53]} {[%emt 00:01:12]} g4 {[%clk 00:40:57]} {[%emt 00:00:41]}
43. Rf6+ {[%clk 00:44:57]} {[%emt 00:00:26]} Kg5 {[%clk 00:41:15]} {[%emt
00:00:12]} 44. Qg7+ {[%clk 00:45:14]} {[%emt 00:00:12]} Kh5 {[%clk 00:41:20]}
{[%emt 00:00:26]} 45. Rh6# {[%clk 00:45:31]} {[%emt 00:00:13]} 1-0